bitfinex/quotes_BTCUSD_20241130
["timestamp","ask_amount","ask_price","bid_price","bid_amount"]
[1732982574416,0.10323609,96671.0,96670.0,1.63657301]
[1732982574627,0.10409999,96671.0,96670.0,0.13657301]
[1732982575338,0.10409999,96671.0,96670.0,1.63657301]
[1732982578165,0.10409999,96671.0,96670.0,0.13657301]
[1732982578614,0.10409999,96671.0,96670.0,1.63357301]
[1732982578833,0.10409999,96671.0,96670.0,1.63157301]
[1732982579056,0.10409999,96671.0,96670.0,1.63857301]
[1732982583554,0.10409999,96671.0,96670.0,1.63457301]
[1732982583812,0.10409999,96671.0,96670.0,1.63857301]
[1732982584593,0.0008639,96671.0,96670.0,1.76007301]
[1732982584824,0.103441,96673.0,96672.0,0.023]
[1732982585030,0.103441,96673.0,96672.0,0.12584521]
[1732982585274,0.206874,96677.0,96672.0,0.12584521]
[1732982585480,0.0008638,96680.0,96672.0,0.023]
[1732982585481,0.103441,96673.0,96672.0,0.023]
[1732982585697,0.103441,96673.0,96672.0,0.12584521]
[1732982586394,0.103441,96673.0,96672.0,0.13484521]
[1732982586590,0.103441,96673.0,96672.0,0.14084521]
[1732982591879,0.103441,96673.0,96672.0,0.14084521]
[1732982594392,0.0008639,96676.0,96672.0,0.14084521]
[1732982594604,0.0008639,96676.0,96675.0,0.12584521]
[1732982595147,0.0008639,96676.0,96675.0,0.27918421]
[1732982595376,0.0008639,96676.0,96675.0,0.25874521]
[1732982595837,0.0008639,96676.0,96675.0,0.40298279]
[1732982596061,0.0008639,96676.0,96675.0,0.41198279]
[1732982596319,0.0008639,96676.0,96675.0,0.42198279]
[1732982596764,0.00058755,96676.0,96675.0,1.92698279]
[1732982601529,0.00058755,96676.0,96675.0,1.92198279]
[1732982601733,0.0017276,96705.0,96700.0,0.023]
[1732982601977,0.0017276,96705.0,96699.0,0.0482]
[1732982601978,0.0017276,96705.0,96704.0,0.12584521]
[1732982602610,0.0017276,96705.0,96704.0,1.62584521]
[1732982603029,0.00178727,96705.0,96704.0,1.62584521]
[1732982603503,0.00178727,96705.0,96704.0,1.63084521]
[1732982604432,0.00178727,96705.0,96704.0,1.63984521]
[1732982605561,0.00178727,96705.0,96704.0,1.74325321]
[1732982606255,0.00178727,96705.0,96704.0,1.73825321]
[1732982606659,0.00178727,96705.0,96704.0,1.74425321]
[1732982607093,0.00178727,96705.0,96704.0,1.73525321]
[1732982607302,0.00178727,96705.0,96704.0,1.64084521]
[1732982607514,0.1051316,96708.0,96704.0,1.64084521]
[1732982607515,0.103406,96706.0,96705.0,0.023]
[1732982607724,0.0008638,96711.0,96705.0,0.12584521]
[1732982607725,0.103403,96709.0,96705.0,0.12584521]
[1732982607943,0.103403,96709.0,96708.0,0.10284521]
[1732982608146,0.103403,96709.0,96708.0,0.12584521]
[1732982609249,0.0008638,96711.0,96708.0,0.12584521]
[1732982609250,0.103401,96710.0,96709.0,0.023]
[1732982609509,0.103401,96710.0,96709.0,0.12584521]
[1732982610986,0.103401,96710.0,96709.0,1.62584521]
[1732982611408,0.103401,96710.0,96709.0,1.63084521]
[1732982611620,0.103401,96710.0,96709.0,1.63984521]
[1732982622996,0.1042645,96710.0,96709.0,1.63984521]
[1732982623865,0.1042645,96710.0,96709.0,1.63484521]
[1732982624077,0.1042645,96710.0,96709.0,1.63084521]
[1732982624292,0.1042645,96710.0,96709.0,1.63984521]
[1732982624705,0.1042645,96710.0,96709.0,1.63484521]
[1732982624935,0.1042645,96710.0,96709.0,1.63984521]
[1732982630282,0.2332645,96710.0,96709.0,1.63984521]
[1732982630963,0.1042645,96710.0,96709.0,1.63984521]
[1732982635876,0.16062139,96712.0,96709.0,1.63984521]
[1732982636074,0.26402039,96712.0,96711.0,0.12584521]
[1732982636518,0.26402039,96712.0,96711.0,1.62584521]
[1732982637880,0.26402039,96712.0,96711.0,1.63084521]
[1732982638327,0.26402039,96712.0,96711.0,1.62584521]
[1732982638546,0.103399,96712.0,96711.0,1.62584521]
[1732982638761,0.103399,96712.0,96711.0,1.63984521]
[1732982639236,0.103398,96713.0,96712.0,0.023]
[1732982639454,0.103398,96713.0,96712.0,0.12584521]
[1732982640779,0.000864,96716.0,96712.0,0.12584521]
[1732982640990,0.104259,96716.0,96715.0,0.10284521]
[1732982641189,0.104259,96716.0,96715.0,0.12584521]
[1732982642372,0.104259,96716.0,96715.0,0.13484521]
[1732982643876,0.104259,96716.0,96715.0,0.13984521]
[1732982644857,0.104259,96716.0,96715.0,1.63984521]
[1732982645679,0.000864,96716.0,96715.0,1.63984521]
[1732982645916,0.104259,96716.0,96715.0,1.63984521]
[1732982647102,0.000864,96716.0,96715.0,1.63984521]
[1732982648092,0.104259,96716.0,96715.0,1.63984521]
[1732982648330,0.000864,96716.0,96715.0,1.63984521]
[1732982648570,0.000864,96716.0,96715.0,1.63084521]
[1732982649033,0.000864,96716.0,96715.0,1.63984521]
[1732982649261,0.000864,96716.0,96715.0,1.63484521]
[1732982649737,0.000864,96716.0,96715.0,1.64184521]
[1732982649955,0.104259,96716.0,96715.0,1.64184521]
[1732982650435,0.000864,96716.0,96715.0,1.64184521]
[1732982650684,0.104259,96716.0,96715.0,1.64184521]
[1732982652330,0.152159,96716.0,96715.0,1.64184521]
[1732982652868,0.000864,96716.0,96715.0,1.64184521]
[1732982654291,0.104259,96716.0,96715.0,1.64184521]
[1732982657637,0.151859,96716.0,96715.0,1.64184521]
[1732982657857,0.230859,96716.0,96715.0,1.64184521]
[1732982658973,0.230859,96716.0,96715.0,0.14184521]
[1732982659198,0.230859,96716.0,96715.0,0.11884521]
[1732982660359,0.230859,96716.0,96715.0,0.10284521]
[1732982660600,0.230859,96716.0,96715.0,0.14184521]
[1732982660823,0.230859,96716.0,96715.0,1.63284521]
[1732982661274,0.230859,96716.0,96715.0,1.64184521]
[1732982661709,0.230859,96716.0,96715.0,1.63484521]
[1732982662169,0.230859,96716.0,96715.0,1.63984521]
[1732982662857,0.230859,96716.0,96715.0,0.11684521]
[1732982663100,0.230859,96716.0,96715.0,0.11184521]
[1732982663344,0.230859,96716.0,96715.0,1.60784521]
[1732982663774,0.23058501,96716.0,96715.0,1.61684521]
[1732982664000,0.23058501,96716.0,96715.0,1.60784521]
[1732982664225,0.23058501,96716.0,96715.0,1.61684521]
[1732982664458,0.23058501,96716.0,96715.0,1.63984521]
[1732982664906,0.23058501,96716.0,96715.0,1.63484521]
[1732982665145,0.22996971,96716.0,96715.0,1.63984521]
[1732982669423,0.23169671,96716.0,96715.0,1.63984521]
[1732982670302,0.23169671,96716.0,96715.0,1.61684521]
[1732982677500,0.080727,96716.0,96715.0,1.61684521]
[1732982677718,0.334122,96716.0,96715.0,1.61684521]
[1732982680829,0.334122,96716.0,96715.0,1.61770861]
[1732982681942,0.255122,96716.0,96715.0,1.61770861]
[1732982685040,0.0008639,96717.0,96715.0,1.61770861]
[1732982685273,0.103395,96716.0,96715.0,1.61770861]
[1732982686278,0.103395,96716.0,96715.0,1.61270861]
[1732982686678,0.103395,96716.0,96715.0,1.61770861]
[1732982687199,0.253395,96716.0,96715.0,1.61270861]
[1732982687440,0.253395,96716.0,96715.0,1.61770861]
[1732982689102,0.253395,96716.0,96715.0,0.11770861]
[1732982689342,0.379995,96716.0,96715.0,0.11770861]
[1732982692448,0.379995,96716.0,96715.0,1.61770861]
[1732982692964,0.3817218,96716.0,96715.0,1.61770861]
[1732982693848,0.3333218,96716.0,96715.0,1.61770861]
[1732982694104,0.2551218,96716.0,96715.0,1.61770861]
[1732982694290,0.2551218,96716.0,96715.0,1.64070861]
[1732982704658,0.0017268,96716.0,96715.0,1.76490861]
[1732982704863,0.0017268,96716.0,96715.0,1.86830461]
[1732982705091,0.0017268,96716.0,96715.0,1.76490861]
[1732982705541,0.1051218,96716.0,96715.0,1.76490861]
[1732982706191,0.0017268,96716.0,96715.0,1.76490861]
[1732982707096,0.1051218,96716.0,96715.0,1.76490861]
[1732982707714,0.0017268,96716.0,96715.0,1.76490861]
[1732982707923,0.0017268,96716.0,96715.0,1.86830461]
[1732982708127,0.0017268,96716.0,96715.0,1.76490861]
[1732982709643,0.0017268,96716.0,96715.0,1.75990861]
[1732982709852,0.0017268,96716.0,96715.0,1.76690861]
[1732982710270,0.0017268,96716.0,96715.0,1.75790861]
[1732982710501,0.1051218,96716.0,96715.0,1.75790861]
[1732982710925,0.0017268,96716.0,96715.0,1.75790861]
[1732982711135,0.1051218,96716.0,96715.0,1.75790861]
[1732982711568,0.1051218,96716.0,96715.0,1.75090861]
[1732982711822,0.1051218,96716.0,96715.0,1.76690861]
[1732982712015,0.1051218,96716.0,96715.0,1.75790861]
[1732982712154,0.1051218,96716.0,96715.0,1.68810861]
[1732982712788,0.1051218,96716.0,96715.0,1.64270861]
[1732982714241,0.1051218,96716.0,96715.0,1.61970861]
[1732982717876,0.0017268,96716.0,96715.0,1.76820861]
[1732982718330,0.0017268,96716.0,96715.0,1.87160461]
[1732982719694,0.0017268,96716.0,96715.0,1.90235117]
[1732982720572,0.0017268,96716.0,96715.0,1.86460461]
[1732982721063,0.103374,96737.0,96729.0,0.103381]
[1732982721303,0.253374,96737.0,96736.0,0.10284521]
[1732982721539,0.103374,96737.0,96736.0,0.10284521]
[1732982721768,0.15,96742.0,96737.0,0.023]
[1732982722037,0.103367,96743.0,96741.0,0.10284521]
[1732982722256,0.103367,96743.0,96731.0,0.1255]
[1732982722257,0.253367,96743.0,96742.0,0.10284521]
[1732982722473,0.25396376,96743.0,96742.0,0.10284521]
[1732982722690,0.25396376,96743.0,96742.0,1.60284521]
[1732982723116,0.25396376,96743.0,96742.0,1.60184521]
[1732982724713,0.25396376,96743.0,96742.0,1.60484521]
[1732982724988,0.25396376,96743.0,96742.0,1.60984521]
[1732982726968,0.25396376,96743.0,96742.0,0.10984521]
[1732982727184,0.25482716,96743.0,96742.0,0.10984521]
[1732982731606,0.25482716,96743.0,96742.0,1.60984521]
[1732982733135,0.25482716,96743.0,96742.0,1.65504521]
[1732982733365,0.10482716,96743.0,96742.0,1.65504521]
[1732982733833,0.10482716,96743.0,96742.0,1.65204521]
[1732982734075,0.10482716,96743.0,96742.0,1.65704521]
[1732982734313,0.00146016,96743.0,96742.0,1.65704521]
[1732982734547,0.10482616,96743.0,96742.0,1.65704521]
[1732982735007,0.10482616,96743.0,96742.0,1.65204521]
[1732982735243,0.10482616,96743.0,96742.0,1.66004521]
[1732982736110,0.10482616,96743.0,96742.0,1.64704521]
[1732982736343,0.10482616,96743.0,96742.0,1.65604521]
[1732982736555,0.10482616,96743.0,96742.0,1.66304521]
[1732982736782,0.00146016,96743.0,96742.0,1.78941221]
[1732982737003,0.00146016,96743.0,96742.0,1.86671221]
[1732982738620,0.00146016,96743.0,96742.0,1.85771221]
[1732982739081,0.00146016,96743.0,96742.0,1.86671221]
[1732982739551,0.00146016,96743.0,96742.0,1.87043861]
[1732982739778,0.00146016,96743.0,96742.0,1.87843861]
[1732982740244,0.00146016,96743.0,96742.0,1.87043861]
[1732982740481,0.00146016,96743.0,96742.0,1.87843861]
[1732982743865,0.00146016,96743.0,96742.0,1.87043861]
[1732982744573,0.00146016,96743.0,96742.0,1.85243861]
[1732982744805,0.00146016,96743.0,96742.0,1.86143861]
[1732982745251,0.00146016,96743.0,96742.0,1.86943861]
[1732982745680,0.00146016,96743.0,96742.0,1.76607161]
[1732982746320,0.0002,96749.0,96744.0,0.103365]
[1732982746543,0.00025965,96749.0,96748.0,0.10284521]
[1732982746784,0.10361965,96749.0,96748.0,0.12584521]
[1732982748735,0.10361965,96749.0,96748.0,0.13484521]
[1732982749812,0.10361965,96749.0,96748.0,0.14184521]
[1732982750961,0.10448345,96749.0,96748.0,0.14184521]
[1732982762309,0.00112345,96749.0,96748.0,0.14184521]
[1732982762523,0.00112345,96749.0,96748.0,0.18774521]
[1732982763250,0.00112345,96749.0,96748.0,0.29110621]
[1732982763906,0.00112345,96749.0,96748.0,1.79110621]
[1732982766158,0.00112345,96749.0,96748.0,1.68774521]
[1732982766365,0.00112345,96749.0,96748.0,1.79110621]
[1732982766589,0.10448345,96749.0,96748.0,1.68774521]
[1732982766815,0.00112345,96749.0,96748.0,1.68774521]
[1732982767256,0.206689,96764.0,96748.0,1.68774521]
[1732982767257,0.10336,96750.0,96749.0,0.023]
[1732982767499,0.20669,96763.0,96749.0,0.12584521]
[1732982767711,0.310035,96763.0,96762.0,0.10284521]
[1732982769798,0.438235,96763.0,96762.0,0.10584521]
[1732982770507,0.438235,96763.0,96762.0,1.60584521]
[1732982771237,0.438235,96763.0,96762.0,1.61084521]
[1732982771474,0.41426468,96763.0,96762.0,1.61084521]
[1732982771703,0.103345,96763.0,96762.0,1.61084521]
[1732982772399,0.103345,96763.0,96762.0,1.60284521]
[1732982772633,0.15,96764.0,96762.0,1.60284521]
[1732982772861,0.1041988,96773.0,96764.0,0.103343]
[1732982773098,0.0008638,96773.0,96768.0,0.10284521]
[1732982773306,0.0008638,96773.0,96768.0,1.62584521]
[1732982773559,0.0008638,96773.0,96768.0,1.78508421]
[1732982773810,0.206633,96790.0,96779.0,0.023]
[1732982774044,0.206633,96790.0,96771.0,0.023]
[1732982774045,0.206624,96794.0,96788.0,0.10284521]
[1732982774270,0.41325,96794.0,96788.0,0.10284521]
[1732982774504,0.103315,96791.0,96788.0,1.60284521]
[1732982774725,0.103317,96790.0,96788.0,1.60284521]
[1732982774958,0.00037894,96789.0,96788.0,1.60284521]
[1732982775419,0.10369594,96789.0,96788.0,1.61084521]
[1732982775646,0.00037894,96789.0,96788.0,1.61084521]
[1732982775859,0.10369594,96789.0,96788.0,1.61984521]
[1732982776306,0.00037894,96789.0,96788.0,1.60984521]
[1732982777442,0.10369594,96789.0,96788.0,1.60984521]
[1732982778339,0.20662,96796.0,96788.0,1.61884521]
[1732982778567,0.103313,96793.0,96792.0,0.10284521]
[1732982779036,0.103313,96793.0,96792.0,1.60284521]
[1732982780218,0.103313,96793.0,96792.0,1.61184521]
[1732982781549,0.103313,96793.0,96792.0,1.61684521]
[1732982784966,0.103313,96794.0,96792.0,1.66654521]
[1732982785190,0.103313,96793.0,96792.0,1.66654521]
[1732982785394,0.103313,96793.0,96792.0,0.16654521]
[1732982785814,0.103313,96793.0,96792.0,1.66154521]
[1732982786186,0.1041768,96793.0,96792.0,1.65754521]
[1732982786401,0.1041768,96793.0,96792.0,1.66654521]
[1732982786665,0.1041768,96793.0,96792.0,1.65754521]
[1732982786848,0.0008638,96793.0,96792.0,1.66654521]
[1732982787086,0.1041768,96793.0,96792.0,1.66654521]
[1732982787287,0.0008638,96793.0,96792.0,1.66654521]
[1732982787500,0.1041768,96793.0,96792.0,1.66154521]
[1732982788154,0.1041768,96793.0,96792.0,1.66654521]
[1732982789027,0.103304,96801.0,96792.0,1.66654521]
[1732982789216,0.103312,96794.0,96792.0,1.5637]
[1732982789509,0.103312,96794.0,96793.0,0.10284521]
[1732982789861,0.103312,96794.0,96793.0,1.60284521]
[1732982792083,0.103312,96794.0,96793.0,1.61184521]
[1732982792493,0.103312,96794.0,96793.0,1.61684521]
[1732982798312,0.1041756,96794.0,96793.0,1.61684521]
[1732982808034,0.1041756,96794.0,96793.0,1.61469421]
[1732982808937,0.10349907,96794.0,96793.0,1.61469421]
[1732982810274,0.09849907,96794.0,96793.0,1.61469421]
[1732982810490,0.09849907,96794.0,96793.0,1.61642101]
[1732982813537,0.09800886,96794.0,96793.0,1.61642101]
[1732982813963,0.09800886,96794.0,96793.0,1.66192101]
[1732982818473,0.09800886,96794.0,96793.0,1.61642101]
[1732982828807,0.08600886,96794.0,96793.0,1.61642101]
[1732982832525,0.05891375,96794.0,96793.0,1.61642101]
[1732982832721,0.1041766,96794.0,96793.0,1.61642101]
[1732982836329,0.17272636,96796.0,96793.0,1.61642101]
[1732982836542,0.103313,96794.0,96793.0,1.61642101]
[1732982836754,0.103313,96794.0,96793.0,0.11642101]
[1732982837226,0.103313,96794.0,96793.0,1.61642101]
[1732982837443,0.103313,96794.0,96793.0,1.61142101]
[1732982837882,0.103313,96794.0,96793.0,1.61642101]
[1732982838354,0.103313,96794.0,96793.0,1.61142101]
[1732982838787,0.103313,96794.0,96793.0,1.61642101]
[1732982842456,0.103313,96794.0,96793.0,1.66242101]
[1732982843610,0.206611,96800.0,96793.0,1.66242101]
[1732982843849,0.103313,96794.0,96793.0,1.66242101]
[1732982844533,0.103313,96794.0,96793.0,1.65742101]
[1732982844749,0.103313,96794.0,96793.0,1.61142101]
[1732982845440,0.103313,96794.0,96793.0,1.61642101]
[1732982845687,0.103313,96794.0,96793.0,1.60742101]
[1732982846090,0.103313,96794.0,96793.0,1.61642101]
[1732982846279,0.103313,96794.0,96793.0,1.60742101]
[1732982846737,0.103313,96794.0,96793.0,1.61642101]
[1732982847180,0.103313,96794.0,96793.0,1.61142101]
[1732982847624,0.103313,96794.0,96793.0,1.61642101]
[1732982849931,0.103313,96794.0,96793.0,0.0157268]
[1732982850144,0.186113,96794.0,96793.0,0.0157268]
[1732982852397,0.233213,96794.0,96793.0,0.0157268]
[1732982853538,0.233213,96794.0,96793.0,0.0067268]
[1732982854184,0.103313,96794.0,96793.0,0.11057201]
[1732982854897,0.103313,96794.0,96793.0,1.61057201]
[1732982855119,0.103313,96794.0,96793.0,1.60457201]
[1732982855585,0.103313,96794.0,96793.0,1.60957201]
[1732982857163,0.103313,96794.0,96793.0,1.60457201]
[1732982857372,0.103313,96794.0,96793.0,1.60957201]
[1732982857583,0.103313,96794.0,96793.0,1.61257201]
[1732982857806,0.103313,96794.0,96793.0,1.60757201]
[1732982858555,0.103313,96794.0,96793.0,1.61557201]
[1732982864386,0.1032257,96794.0,96793.0,1.61557201]
[1732982865291,0.206617,96797.0,96793.0,1.61557201]
[1732982865532,0.103313,96794.0,96793.0,1.5127268]
[1732982867158,0.103313,96794.0,96793.0,1.5047268]
[1732982867377,0.103313,96794.0,96793.0,1.5097268]
[1732982867588,0.103313,96794.0,96793.0,1.5127268]
[1732982868012,0.103313,96794.0,96793.0,1.5177268]
[1732982868469,0.103313,96794.0,96793.0,1.5207268]
[1732982875018,0.103313,96794.0,96793.0,1.62357201]
[1732982882802,0.103313,96794.0,96793.0,1.67117201]
[1732982887328,0.103313,96794.0,96793.0,0.17117201]
[1732982887754,0.103313,96794.0,96793.0,1.67117201]
[1732982887969,0.103313,96794.0,96793.0,1.66817201]
[1732982888177,0.103313,96794.0,96793.0,1.65217201]
[1732982888379,0.103313,96794.0,96793.0,1.65717201]
[1732982888614,0.103313,96794.0,96793.0,1.66617201]
[1732982889963,0.103313,96794.0,96793.0,1.66117201]
[1732982890188,0.103313,96794.0,96793.0,1.65717201]
[1732982890611,0.103313,96794.0,96793.0,1.66117201]
[1732982890821,0.103313,96794.0,96793.0,0.16117201]
[1732982891036,0.103313,96794.0,96793.0,0.16917201]
[1732982891487,0.103313,96794.0,96793.0,1.66917201]
[1732982891709,0.103313,96794.0,96793.0,1.67217201]
[1732982894925,0.16196248,96796.0,96793.0,1.67217201]
[1732982895140,0.103311,96795.0,96794.0,0.10284521]
[1732982895785,0.103311,96795.0,96794.0,1.60284521]
[1732982896682,0.103311,96795.0,96794.0,1.60984521]
[1732982897783,0.103311,96795.0,96794.0,1.61284521]
[1732982911052,0.103311,96795.0,96794.0,1.51]
[1732982911307,0.103311,96795.0,96794.0,0.01]
[1732982915202,0.103311,96795.0,96794.0,1.51]
[1732982915718,0.103311,96795.0,96794.0,0.01]
[1732982917480,0.103311,96795.0,96794.0,0.0117276]
[1732982919036,0.16196248,96796.0,96793.0,0.0017268]
[1732982919037,0.103312,96794.0,96793.0,4e-07]
[1732982919259,0.126312,96794.0,96793.0,4e-07]
[1732982919487,0.252012,96794.0,96793.0,4e-07]
[1732982920420,0.252012,96794.0,96793.0,0.0030004]
[1732982920625,0.253012,96794.0,96793.0,0.0100004]
[1732982921038,0.263012,96794.0,96793.0,0.0100004]
[1732982921241,0.263012,96794.0,96793.0,4e-07]
[1732982921493,0.103317,96789.0,96788.0,0.00017894]
[1732982921932,0.126317,96789.0,96788.0,0.00017894]
[1732982922855,0.130451,96789.0,96788.0,0.00017894]
[1732982923314,0.140451,96789.0,96788.0,0.00017894]
[1732982923823,0.140451,96789.0,96788.0,0.00217894]
[1732982929264,0.140451,96789.0,96788.0,0.00390654]
[1732982930339,0.107451,96789.0,96788.0,0.00390654]
[1732982942799,0.103317,96789.0,96788.0,0.00390654]
[1732982943855,0.126317,96789.0,96788.0,0.00390654]
[1732982946641,0.023,96790.0,96788.0,0.00390654]
[1732982946860,0.103317,96789.0,96788.0,0.00390654]
[1732982947089,0.103317,96789.0,96788.0,0.10675175]
[1732982947304,0.103317,96789.0,96788.0,0.15635175]
[1732982947519,0.103317,96789.0,96788.0,1.73535175]
[1732982947982,0.103317,96789.0,96788.0,1.73735175]
[1732982949386,0.206628,96792.0,96789.0,0.1306]
[1732982949590,0.103316,96790.0,96789.0,0.1306]
[1732982949826,0.103316,96790.0,96789.0,0.23344521]
[1732982951161,0.103316,96790.0,96789.0,0.23844521]
[1732982952542,0.15894061,96792.0,96790.0,0.0496]
[1732982952761,0.103315,96791.0,96790.0,0.0496]
[1732982952989,0.103315,96791.0,96790.0,0.15244521]
[1732982954119,0.1041789,96791.0,96790.0,0.15744521]
[1732982954584,0.1041789,96791.0,96790.0,0.15944521]
[1732982956161,0.1041789,96791.0,96790.0,0.15744521]
[1732982956499,0.1041789,96791.0,96790.0,0.15944521]
[1732982956917,0.0008639,96791.0,96790.0,0.15944521]
[1732982957123,0.1041789,96791.0,96790.0,0.15944521]
[1732982964162,0.103315,96791.0,96790.0,0.15944521]
[1732982965263,0.103315,96791.0,96790.0,0.16117301]
[1732982969079,0.103315,96791.0,96790.0,1.66117301]
[1732982972213,0.103315,96791.0,96790.0,0.16117301]
[1732982972652,0.103315,96791.0,96790.0,1.66117301]
[1732982974912,0.103315,96791.0,96790.0,0.16117301]
[1732982978722,0.103315,96791.0,96790.0,0.16013745]
[1732982979162,0.103315,96791.0,96790.0,0.11157301]
[1732982983203,0.103315,96791.0,96790.0,0.0087278]
[1732982983670,0.181915,96791.0,96790.0,0.0087278]
[1732982984526,0.181915,96791.0,96790.0,0.0037278]
[1732982986321,0.181915,96791.0,96790.0,0.0017278]
[1732982986788,0.181915,96791.0,96790.0,0.0037278]
[1732982987192,0.181915,96791.0,96790.0,0.0017278]
[1732982987665,0.104315,96791.0,96790.0,0.0017278]
[1732982997774,0.001,96791.0,96790.0,0.0017278]
[1732982998015,0.104315,96791.0,96790.0,0.0017278]
[1732983001756,0.1051789,96791.0,96790.0,0.0017278]
[1732983007386,0.1051789,96791.0,96790.0,0.00043743]
[1732983023079,0.0018639,96791.0,96790.0,0.23058264]
[1732983023313,0.1051789,96791.0,96790.0,0.23058264]
[1732983023560,0.1051789,96791.0,96790.0,1.74054264]
[1732983024028,0.1051789,96791.0,96790.0,0.24054264]
[1732983024495,0.10507049,96791.0,96790.0,0.24054264]
[1732983025452,0.10607049,96791.0,96790.0,0.24754264]
[1732983025904,0.0018639,96791.0,96790.0,0.24754264]
[1732983026124,0.0008639,96791.0,96790.0,0.24054264]
[1732983026349,0.0008639,96791.0,96790.0,0.24354264]
[1732983026567,0.0018639,96791.0,96790.0,0.25054264]
[1732983026794,0.0018639,96791.0,96790.0,0.24754264]
[1732983027022,0.0018639,96791.0,96790.0,0.25054264]
[1732983027458,0.1051789,96791.0,96790.0,0.25054264]
[1732983028351,0.0018639,96791.0,96790.0,0.25054264]
[1732983029027,0.1051789,96791.0,96790.0,0.25054264]
[1732983029717,0.0018639,96791.0,96790.0,0.25054264]
[1732983029978,0.1051789,96791.0,96790.0,0.25054264]
[1732983033447,0.0018639,96791.0,96790.0,0.25054264]
[1732983034653,0.1051789,96791.0,96790.0,0.25054264]
[1732983034875,0.0018639,96791.0,96790.0,0.25054264]
[1732983035090,0.1051789,96791.0,96790.0,0.25054264]
[1732983036697,0.0018639,96791.0,96790.0,0.25054264]
[1732983037198,0.1051789,96791.0,96790.0,0.25054264]
[1732983037628,0.0018639,96791.0,96790.0,0.25054264]
[1732983038827,0.1051789,96791.0,96790.0,0.25054264]
[1732983039971,0.0018639,96791.0,96790.0,0.25054264]
[1732983040203,0.1051789,96791.0,96790.0,0.25054264]
[1732983043752,0.0018639,96791.0,96790.0,0.25054264]
[1732983044817,0.1051789,96791.0,96790.0,0.25054264]
[1732983048834,0.1051789,96791.0,96790.0,0.17094264]
[1732983049776,0.1051789,96791.0,96790.0,0.12324264]
[1732983054806,0.0951789,96791.0,96790.0,0.12324264]
[1732983056143,0.0951789,96791.0,96790.0,1.12324264]
[1732983056579,0.0951789,96791.0,96790.0,2.62324264]
[1732983059532,0.0951789,96791.0,96790.0,1.12324264]
[1732983060659,0.0969067,96791.0,96790.0,1.12324264]
[1732983062235,0.0969067,96791.0,96790.0,1.17084264]
[1732983062731,0.0969067,96791.0,96790.0,1.25304264]
[1732983063619,0.0969067,96791.0,96790.0,2.75304264]
[1732983064560,0.0969067,96791.0,96790.0,2.67084264]
[1732983065645,0.0969067,96791.0,96790.0,2.62324264]
[1732983069447,0.0969067,96791.0,96790.0,2.67084264]
[1732983070156,0.0969067,96791.0,96790.0,1.12324264]
[1732983070598,0.0969067,96791.0,96790.0,1.02039743]
[1732983073984,0.0017278,96791.0,96790.0,1.02039743]
[1732983074461,0.1050428,96791.0,96790.0,1.02039743]
[1732983094342,0.1150428,96791.0,96790.0,1.02039743]
[1732983094551,0.2192428,96791.0,96790.0,0.89641943]
[1732983094768,0.37797987,96791.0,96790.0,0.81376743]
[1732983095418,0.41020978,96791.0,96790.0,0.81376743]
[1732983095631,0.37897987,96791.0,96790.0,0.79483223]
[1732983095879,0.37897987,96791.0,96790.0,0.73384323]
[1732983096106,0.37897987,96791.0,96790.0,0.71318023]
[1732983096768,0.37897987,96791.0,96790.0,0.63052823]
[1732983096769,0.38897987,96791.0,96790.0,0.63052823]
[1732983097000,0.38897987,96791.0,96790.0,0.60986523]
[1732983097217,0.39738455,96791.0,96790.0,0.60986523]
[1732983097633,0.39841026,96791.0,96790.0,0.58920223]
[1732983098475,0.39841026,96791.0,96790.0,0.52721323]
[1732983098676,0.39841026,96791.0,96790.0,0.50655023]
[1732983098939,0.39841026,96791.0,96790.0,0.46522423]
[1732983099154,0.39841026,96791.0,96790.0,0.35949557]
[1732983099601,0.39841026,96791.0,96790.0,0.33883257]
[1732983099794,0.39841026,96791.0,96790.0,0.25618057]
[1732983100650,0.39841026,96791.0,96790.0,0.23551757]
[1732983100864,0.39841026,96791.0,96790.0,0.19419057]
[1732983101071,0.39841026,96791.0,96790.0,0.15286257]
[1732983101917,0.39841026,96791.0,96790.0,0.04954257]
[1732983101918,0.38897987,96791.0,96790.0,0.04954257]
[1732983102600,0.38897987,96791.0,96790.0,0.02887857]
[1732983103025,0.38897987,96791.0,96788.0,0.00190654]
[1732983103026,0.146317,96789.0,96788.0,1.1e-07]
[1732983103243,0.32866221,96789.0,96788.0,1.1e-07]
[1732983106092,0.33466221,96789.0,96788.0,1.1e-07]
[1732983106533,0.113329,96778.0,96777.0,0.005]
[1732983107444,0.136329,96778.0,96777.0,0.005]
[1732983108447,0.143329,96778.0,96777.0,0.0058639]
[1732983110110,0.15412086,96778.0,96777.0,0.0058639]
[1732983110559,0.22962086,96778.0,96777.0,0.0058639]
[1732983112142,0.33246607,96778.0,96777.0,0.0058639]
[1732983113542,0.33246607,96778.0,96777.0,9e-07]
[1732983114232,0.023,96775.0,96773.0,1e-07]
[1732983114444,0.22917821,96774.0,96773.0,1e-07]
[1732983115610,0.23117821,96774.0,96773.0,1e-07]
[1732983118037,0.23317821,96774.0,96773.0,1e-07]
[1732983122682,0.23207821,96774.0,96773.0,1e-07]
[1732983125150,0.22707821,96774.0,96773.0,1e-07]
[1732983125593,0.25928089,96774.0,96773.0,1e-07]
[1732983125838,0.39438089,96774.0,96773.0,1e-07]
[1732983126907,0.38438089,96774.0,96773.0,1e-07]
[1732983127117,0.39438089,96774.0,96773.0,1e-07]
[1732983127532,0.38438089,96774.0,96773.0,1e-07]
[1732983129324,0.33668089,96774.0,96773.0,1e-07]
[1732983129766,0.33539695,96774.0,96773.0,1e-07]
[1732983131378,0.25799695,96774.0,96773.0,1e-07]
[1732983131634,0.16253568,96774.0,96773.0,1e-07]
[1732983131865,0.16253568,96774.0,96773.0,0.0452001]
[1732983135172,0.16426368,96774.0,96773.0,0.0452001]
[1732983140483,0.16426368,96774.0,96773.0,1e-07]
[1732983141144,0.26710889,96774.0,96773.0,1e-07]
[1732983142227,0.27710889,96774.0,96773.0,1e-07]
[1732983142988,0.29022313,96774.0,96773.0,1e-07]
[1732983143413,0.37162313,96774.0,96773.0,1e-07]
[1732983143629,0.42022313,96774.0,96773.0,1e-07]
[1732983144250,0.41822313,96774.0,96773.0,1e-07]
[1732983144481,0.60195528,96774.0,96773.0,1e-07]
[1732983144697,0.42722313,96774.0,96773.0,1e-07]
[1732983145360,0.42522313,96774.0,96773.0,1e-07]
[1732983145594,0.61093342,96774.0,96773.0,1e-07]
[1732983145835,0.65741827,96774.0,96773.0,1e-07]
[1732983146066,1.20541827,96774.0,96773.0,1e-07]
[1732983146504,0.97322313,96774.0,96773.0,1e-07]